fUST/lending_fUST_20260111
["ID","MTS","AMOUNT","RATE_DAILY","PERIOD"]
[401277530,1768097438821,-150.0,9.653e-05,2]
[401277532,1768097438831,-500.0,9.653e-05,2]
[401277534,1768097438840,-150.0,9.653e-05,2]
[401277536,1768097438849,-151.23971812,9.653e-05,2]
[401277538,1768097438859,-150.0,9.653e-05,2]
[401277540,1768097438870,-150.0,9.653e-05,2]
[401277542,1768097438880,-500.0,9.653e-05,2]
[401277544,1768097438890,-150.0,9.653e-05,2]
[401277546,1768097438899,-150.80806824,9.653e-05,2]
[401277548,1768097438909,-150.0,9.653e-05,2]
[401277550,1768097438919,-150.0,9.653e-05,2]
[401277552,1768097438930,-150.0,9.653e-05,2]
[401277554,1768097438939,-150.0,9.653e-05,2]
[401277556,1768097438950,-150.0,9.653e-05,2]
[401277558,1768097438959,-218.73817197,9.733e-05,2]
[401277559,1768097438969,-504.16147893,9.733e-05,2]
[401277561,1768097438979,-163.69848314,9.733e-05,2]
[401277563,1768097438989,-197.34924954,9.733e-05,2]
[401277565,1768097438999,-150.0,9.733e-05,2]
[401277567,1768097439009,-254.559051,9.733e-05,2]
[401277568,1768097439018,-254.559051,9.733e-05,2]
[401277570,1768097439028,-254.559051,9.733e-05,2]
[401277571,1768097439037,-254.559051,9.733e-05,2]
[401277572,1768097439047,-254.559051,9.733e-05,2]
[401277573,1768097439056,-254.559051,9.733e-05,2]
[401277574,1768097439066,-254.559051,9.733e-05,2]
[401277575,1768097439075,-254.559051,9.733e-05,2]
[401277576,1768097439085,-8800.3538186,9.734e-05,2]
[401277866,1768097443932,-816.18109437,9.734e-05,2]
[401277882,1768097444086,-3e-08,9.734e-05,2]
[401278942,1768097455012,266.69805773,0.0002739,120]
[401279651,1768097500816,-153.00266868,9.459e-05,2]
[401279652,1768097501655,-764.62512498,9.667e-05,2]
[401279653,1768097503483,-240.27105052,9.667e-05,2]
[401279654,1768097505545,-234.51894738,9.667e-05,2]
[401279655,1768097508229,-311.5942483,9.667e-05,2]
[401279656,1768097508616,10000.0,0.00030137,120]
[401279657,1768097511864,10000.0,0.00030137,120]
[401279658,1768097514201,10000.0,0.00030137,120]
[401279659,1768097529848,9000.0,0.00030137,120]
[401279660,1768097591914,-1000.0,9.667e-05,2]
[401279661,1768097593451,-64.56389922,9.667e-05,2]
[401279662,1768097593472,-414.1532594,9.667e-05,2]
[401279663,1768097609029,-300.0,9.729e-05,2]
[401279664,1768097609051,-213.5513092,9.73e-05,2]
[401279665,1768097609071,-220.0,9.73e-05,2]
[401279666,1768097609091,-266.4486908,9.73e-05,2]
[401279667,1768097610291,-1000.0,9.73e-05,2]
[401279668,1768097610632,-1000.0,9.73e-05,2]
[401279669,1768097610966,-1000.0,9.73e-05,2]
[401279670,1768097611273,-1000.0,9.73e-05,2]
[401279671,1768097611717,-1000.0,9.73e-05,2]
[401279672,1768097612069,-1000.0,9.73e-05,2]
[401279673,1768097612398,-1000.0,9.73e-05,2]
[401279674,1768097612763,-1000.0,9.73e-05,2]
[401279675,1768097613029,-1000.0,9.73e-05,2]
[401279676,1768097613362,-1000.0,9.73e-05,2]
[401279677,1768097613706,-1000.0,9.73e-05,2]
[401279678,1768097614007,-1000.0,9.73e-05,2]
[401279679,1768097614348,-1000.0,9.73e-05,2]
[401279680,1768097614676,-1000.0,9.73e-05,2]
[401279681,1768097614998,-1000.0,9.73e-05,2]
[401279682,1768097615358,-1000.0,9.73e-05,2]
[401279683,1768097615688,-1000.0,9.73e-05,2]
[401279684,1768097616020,-1000.0,9.73e-05,2]
[401279685,1768097616396,-1000.0,9.73e-05,2]
[401279686,1768097616850,-1000.0,9.73e-05,2]
[401279687,1768097617178,-1000.0,9.73e-05,2]
[401279688,1768097617520,-1000.0,9.73e-05,2]
[401279689,1768097617996,-1000.0,9.73e-05,2]
[401279690,1768097618325,-1000.0,9.73e-05,2]
[401279691,1768097618647,-1000.0,9.73e-05,2]
[401279692,1768097619016,-1000.0,9.73e-05,2]
[401279693,1768097619355,-1000.0,9.73e-05,2]
[401279694,1768097619741,-1000.0,9.73e-05,2]
[401279695,1768097623477,-1000.0,9.73e-05,2]
[401279696,1768097623832,-1000.0,9.73e-05,2]
[401279698,1768097626823,-1000.0,9.73e-05,2]
[401279700,1768097627089,-1000.0,9.73e-05,2]
[401279701,1768097627460,-1000.0,9.73e-05,2]
[401279702,1768097628007,-1000.0,9.73e-05,2]
[401279703,1768097628462,-1000.0,9.73e-05,2]
[401279705,1768097633926,-1000.0,9.73e-05,2]
[401279706,1768097635250,-1000.0,9.73e-05,2]
[401279708,1768097723834,750.0,0.00030137,120]
[401279711,1768097791884,-216.57112837,9.459e-05,2]
[401279712,1768097791905,-314.36415248,9.459e-05,2]
[401279713,1768097793454,-185.63584752,9.459e-05,2]
[401279714,1768097793476,-42.96389322,9.459e-05,2]
[401279715,1768097796005,-107.03610678,9.459e-05,2]
[401279716,1768097796025,-143.42812586,9.459e-05,2]
[401279719,1768097797235,-188.4057517,9.459e-05,2]
[401279721,1768097804536,-168.16612244,9.459e-05,2]
[401279722,1768097804565,-150.0,9.459e-05,2]
[401279723,1768097804592,-200.4248976,9.459e-05,2]
[401279724,1768097804620,-150.0,9.459e-05,2]
[401279727,1768097934199,-171.51692933,9.459e-05,2]
[401279741,1768098112901,1863.9793533,8.723e-05,2]
[401279754,1768098174684,-150.0,9.459e-05,2]
[401279755,1768098174711,-150.0,9.459e-05,2]
[401279756,1768098174740,-150.0,9.459e-05,2]
[401279757,1768098174767,-150.0,9.459e-05,2]
[401279758,1768098174793,-200.0,9.459e-05,2]
[401279759,1768098174820,-150.0,9.459e-05,2]
[401279767,1768098183212,-553.0,9.527e-05,2]
[401279768,1768098183234,-209.28028301,9.527e-05,2]
[401279769,1768098183256,-237.71971699,9.595e-05,2]
[401279771,1768098185338,-62.28028301,9.595e-05,2]
[401279772,1768098185359,-500.0,9.596e-05,2]
[401279773,1768098185379,-150.0,9.596e-05,2]
[401279774,1768098185398,-287.71971699,9.596e-05,2]
[401279775,1768098187524,-225.34784228,9.596e-05,2]
[401279776,1768098187546,-150.0,9.596e-05,2]
[401279777,1768098187565,-150.0,9.596e-05,2]
[401279778,1768098187585,-150.0,9.596e-05,2]
[401279779,1768098187604,-150.0,9.596e-05,2]
[401279780,1768098187624,-152.20596354,9.596e-05,2]
[401279781,1768098187643,-22.44619418,9.596e-05,2]
[401279804,1768098219374,-128.577999,9.596e-05,2]
[401279805,1768098219395,-151.60033052,9.596e-05,2]
[401279806,1768098219415,-599.82167048,9.716e-05,2]
[401279861,1768098438492,-150.0,9.459e-05,2]
[401279862,1768098438523,-150.0,9.459e-05,2]
[401279863,1768098438561,-150.0,9.459e-05,2]
[401279864,1768098438591,-152.24595726,9.459e-05,2]
[401279871,1768098461475,155.97259466,0.0002876,120]
[401279882,1768098514133,153.68550907,0.000295,120]
[401279888,1768098517876,-201.13111625,9.459e-05,2]
[401280012,1768098640119,-3e-08,9.596e-05,2]
[401280586,1768098645871,-149.99999997,9.596e-05,2]
[401280588,1768098645881,-201.00382211,9.596e-05,2]
[401280590,1768098645891,-150.0,9.596e-05,2]
[401280592,1768098645900,-554.0,9.596e-05,2]
[401280594,1768098645909,-205.09467735,9.606e-05,2]
[401280595,1768098645918,-1010.7898627,9.615e-05,2]
[401280598,1768098645928,-1434.0909832,9.717e-05,2]
[401280599,1768098645939,-300.0,9.723e-05,2]
[401280601,1768098645948,-300.0,9.723e-05,2]
[401280604,1768098645958,-926.13319361,9.723e-05,2]
[401280665,1768098811916,-590.79873585,9.256e-05,2]
[401280668,1768098814053,-259.34177295,9.256e-05,2]
[401280669,1768098816259,-428.03925593,9.256e-05,2]
[401280673,1768098817799,-363.12976869,9.256e-05,2]
[401280677,1768098822492,-402.2333988,9.256e-05,2]
[401280679,1768098824569,-212.60059896,9.256e-05,2]
[401280754,1768098961961,-52.1690179,9.256e-05,2]
[401280755,1768098961983,-247.8309821,9.256e-05,2]
[401280756,1768098964021,-215.04454685,9.256e-05,2]
[401280757,1768098966080,-180.32183878,9.256e-05,2]
[401280758,1768098967742,-155.96802217,9.256e-05,2]
[401280759,1768098969753,-425.43522869,9.256e-05,2]
[401280760,1768098973504,-288.59369784,9.256e-05,2]
[401280761,1768098975923,-185.97107347,9.256e-05,2]
[401280762,1768098977890,-300.0,9.256e-05,2]
[401280763,1768098979451,-428.11538093,9.256e-05,2]
[401280764,1768098981773,-164.46405627,9.256e-05,2]
[401280765,1768098983294,-162.62594836,9.256e-05,2]
[401280766,1768098984881,-296.07260367,9.256e-05,2]
[401280767,1768098987676,-273.13235345,9.256e-05,2]
[401280768,1768098989445,-341.50000179,9.256e-05,2]
[401280769,1768098991507,-155.04761584,9.256e-05,2]
[401280770,1768098995078,-211.4232998,9.256e-05,2]
[401280771,1768098996932,-175.8120154,9.256e-05,2]
[401280772,1768098998568,-254.0,9.256e-05,2]
[401280773,1768099000080,-159.37405164,9.256e-05,2]
[401280774,1768099003301,-178.0,9.256e-05,2]
[401280775,1768099005438,-300.0,9.256e-05,2]
[401280776,1768099008180,-198.33543308,9.256e-05,2]
[401280777,1768099010198,-217.10891367,9.256e-05,2]
[401280778,1768099012056,-105.47348765,9.256e-05,2]
[401280779,1768099012077,-153.8682853,9.401e-05,2]
[401280780,1768099024202,-47.12449851,9.401e-05,2]
[401280781,1768099024231,-117.18861718,9.436e-05,2]
[401280782,1768099026385,-295.81390801,9.436e-05,2]
[401280783,1768099027900,-317.80609975,9.436e-05,2]
[401280784,1768099029375,-335.02197347,9.436e-05,2]
[401280785,1768099032035,-356.0873905,9.436e-05,2]
[401280786,1768099035751,-302.97291674,9.436e-05,2]
[401280787,1768099038777,-479.57405048,9.436e-05,2]
[401280788,1768099039016,-1143.84422007,9.436e-05,2]
[401280789,1768099040935,-166.95029715,9.459e-05,2]
[401280790,1768099057925,-35.78474536,9.459e-05,2]
[401280791,1768099062531,1565.2825707,9.436e-05,2]
[401280796,1768099203739,168.34,5e-05,2]
[401280800,1768099266409,174.2301224,8.615e-05,2]
[401280804,1768099287638,7453.6676513,8.602e-05,2]
[401280862,1768099323287,-168.915,9.43e-05,2]
[401280878,1768099342138,-184.3997028,9.43e-05,2]
[401280917,1768099561887,-194.65023604,9.046e-05,2]
[401280918,1768099562407,-19.38656991,9.046e-05,2]
[401280943,1768099636116,-3379.8528712,9.358e-05,2]
[401281017,1768099804145,152.97,5e-05,2]
[401281018,1768099804698,152.97,7.8e-05,2]
[401281106,1768099832424,-553.0,9.533e-05,2]
[401281108,1768099832434,-196.97292813,9.533e-05,2]
[401281110,1768099832444,-238.97211015,9.544e-05,2]
[401281112,1768099832454,-61.02788985,9.544e-05,2]
[401281113,1768099832463,-1200.0,9.544e-05,2]
[401281114,1768099832473,-7140.4325324,9.545e-05,2]
[401281115,1768099832482,-151.07293249,9.596e-05,2]
[401281116,1768099832491,-171.49026475,9.6e-05,2]
[401281320,1768099840565,-3e-08,9.6e-05,2]
[401281757,1768099845969,-49.50973522,9.6e-05,2]
[401281759,1768099845979,-193.03346957,9.61e-05,2]
[401281762,1768099845988,-148.88079593,9.619e-05,2]
[401281806,1768099901595,10000.01,8.621e-05,2]
[401281807,1768099901623,10000.01,8.621e-05,2]
[401281808,1768099901645,10000.01,8.621e-05,2]
[401281809,1768099901668,10000.01,8.621e-05,2]
[401281810,1768099901691,10000.01,8.621e-05,2]
[401281811,1768099901712,10000.01,8.621e-05,2]
[401281812,1768099901734,10000.01,8.621e-05,2]
[401281813,1768099901754,10000.01,8.621e-05,2]
[401281814,1768099901773,10000.01,8.621e-05,2]
[401281815,1768099901793,10000.01,8.621e-05,2]
[401281816,1768099901820,48957.01,8.621e-05,2]
[401281817,1768099905785,-598.10013647,8.621e-05,2]
[401281818,1768099908378,-393.18225645,8.621e-05,2]
[401281819,1768099912049,-316.76736443,8.621e-05,2]
[401281820,1768099913438,-236.83101623,8.621e-05,2]
[401281821,1768099915048,-184.87438556,8.621e-05,2]
[401281822,1768099918201,-553.02272024,8.621e-05,2]
[401281823,1768099920784,-196.9355846,8.621e-05,2]
[401281824,1768099924454,-223.46138158,8.62e-05,2]
[401281825,1768099925910,-76.53861842,8.62e-05,2]
[401281826,1768099925931,-344.25920524,8.621e-05,2]
[401281827,1768099929048,-222.3286527,8.621e-05,2]
[401281828,1768099930590,-318.5620158,8.621e-05,2]
[401281829,1768099932071,-273.10462139,8.621e-05,2]
[401281830,1768099934554,-206.46598122,8.621e-05,2]
[401281831,1768099937214,-422.1797055,8.621e-05,2]
[401281832,1768099939703,-324.23152228,8.621e-05,2]
[401281833,1768099942776,-201.45074074,8.621e-05,2]
[401281834,1768099946539,-309.72266399,8.621e-05,2]
[401281835,1768099949274,-152.11,8.621e-05,2]
[401281836,1768099950897,-379.48148056,8.621e-05,2]
[401281837,1768099954530,-345.68088783,8.621e-05,2]
[401281838,1768099957127,-225.87514555,8.621e-05,2]
[401281839,1768099960314,-283.73024689,8.621e-05,2]
[401281840,1768099962984,-208.18519677,8.621e-05,2]
[401281841,1768099964693,-497.7971289,8.621e-05,2]
[401281842,1768099967929,-263.47424685,8.621e-05,2]
[401281843,1768099973161,-271.36782558,8.621e-05,2]
[401281844,1768099978140,-207.89,8.621e-05,2]
[401281845,1768099980220,-814.73899001,8.621e-05,2]
[401281846,1768099980799,-8413.42192975,8.621e-05,2]
[401281847,1768099982902,-205.74623607,8.62e-05,2]
[401281848,1768099984356,-94.25376393,8.62e-05,2]
[401281849,1768099984378,-563.20926004,8.621e-05,2]
[401281850,1768099984654,-10000.01,8.621e-05,2]
[401281851,1768099984770,-10000.01,8.621e-05,2]
[401281852,1768099985914,-218.00861682,8.621e-05,2]
[401281853,1768099989029,-167.06774744,8.621e-05,2]
[401281854,1768099990655,-166.66666668,8.621e-05,2]
[401281855,1768099992608,-3145.61114449,8.621e-05,2]
[401281856,1768099992638,-300.0,8.792e-05,2]
[401281857,1768099992667,-300.0,8.792e-05,2]
[401281858,1768099992697,-300.0,8.792e-05,2]
[401281859,1768099992730,-300.0,8.792e-05,2]
[401281860,1768099992758,-300.0,8.792e-05,2]
[401281861,1768099992785,-300.0,8.792e-05,2]
[401281862,1768099993089,-108.78771102,8.792e-05,2]
[401281863,1768099993165,-191.21228898,8.792e-05,2]
[401281864,1768099993187,-262.48771102,8.792e-05,2]
[401281865,1768099995236,-37.51228898,8.792e-05,2]
[401281866,1768099995260,-192.53256099,8.792e-05,2]
[401281867,1768099997404,-107.46743901,8.792e-05,2]
[401281868,1768099997428,-225.49453583,8.792e-05,2]
[401281869,1768099999593,-74.50546417,8.792e-05,2]
[401281870,1768099999618,-300.0,8.792e-05,2]
[401281871,1768099999641,-124.84833062,8.792e-05,2]
[401281872,1768100001732,-166.27861173,8.792e-05,2]
[401281873,1768100003217,-8.87305765,8.792e-05,2]
[401281874,1768100003241,-300.0,8.792e-05,2]
[401281875,1768100003265,-13.50367871,8.792e-05,2]
[401281876,1768100003893,-286.49632129,8.792e-05,2]
[401281877,1768100003923,-300.0,8.792e-05,2]
[401281878,1768100006579,-331.54572381,8.967e-05,2]
[401281879,1768100023653,-268.45427619,8.967e-05,2]
[401281880,1768100038659,-500.0,9.459e-05,2]
[401281883,1768100064260,182.23,7.026e-05,2]
[401281884,1768100064658,364.47,7.665e-05,2]
[401281885,1768100065064,546.7,8.304e-05,2]
[401281886,1768100065535,728.94,8.942e-05,2]
[401281890,1768100137875,8177.67,8.653e-05,2]
[401281891,1768100137897,10000.01,8.653e-05,2]
[401281892,1768100137920,2936.6036572,8.653e-05,2]
[401281893,1768100143434,178.13,7.128e-05,2]
[401281894,1768100143938,356.26,7.776e-05,2]
[401281895,1768100144248,534.4,8.424e-05,2]
[401281896,1768100148756,-174.21371744,9.072e-05,2]
[401281897,1768100151525,-214.21744863,9.072e-05,2]
[401281898,1768100153047,-166.74711218,9.072e-05,2]
[401281899,1768100163978,-157.35172175,9.072e-05,2]
[401281903,1768100191872,-156.89941992,9.334e-05,2]
[401281905,1768100223472,253.18,7.042e-05,2]
[401281906,1768100223898,506.37,7.682e-05,2]
[401281907,1768100224290,759.55,8.322e-05,2]
[401281908,1768100224711,1012.74,8.963e-05,2]
[401281909,1768100225129,203.2787656,8.664e-05,2]
[401281911,1768100300960,220.96,7.597e-05,2]
[401281912,1768100301367,441.92,8.288e-05,2]
[401281913,1768100301775,662.88,8.978e-05,2]
[401281914,1768100379134,204.09,7.058e-05,2]
[401281915,1768100379553,408.18,7.7e-05,2]
[401281916,1768100379970,612.26,8.341e-05,2]
[401281917,1768100380402,816.35,8.983e-05,2]
[401281918,1768100404325,152.17,5e-05,2]
[401281919,1768100404896,152.17,5.8e-05,2]
[401281920,1768100405499,152.17,6.7e-05,2]
[401281921,1768100405737,-59.61192117,9.334e-05,2]
[401281922,1768100405760,-319.81305002,9.334e-05,2]
[401281923,1768100406795,152.17,7.5e-05,2]
[401281924,1768100407311,152.17,8.4e-05,2]
[401281925,1768100407358,-154.36641924,9.334e-05,2]
[401281926,1768100407926,152.17,9.2e-05,2]
[401281927,1768100418506,-76.82053074,9.334e-05,2]
[401281931,1768100433750,-500.0,9.459e-05,2]
[401281935,1768100456604,178.11,7.07e-05,2]
[401281936,1768100457246,356.23,7.712e-05,2]
[401281937,1768100457982,534.34,8.355e-05,2]
[401281938,1768100458369,712.45,8.998e-05,2]
[401281939,1768100505969,-300.0,9.515e-05,2]
[401281940,1768100505995,-212.18111427,9.516e-05,2]
[401281941,1768100506021,-300.0,9.516e-05,2]
[401281942,1768100506179,-300.0,9.516e-05,2]
[401281943,1768100506205,-1200.0,9.516e-05,2]
[401281944,1768100506230,-500.0,9.516e-05,2]
[401281945,1768100506256,-198.89451735,9.516e-05,2]
[401281946,1768100506279,-500.0,9.516e-05,2]
[401281947,1768100506305,-500.0,9.516e-05,2]
[401281948,1768100506332,-500.0,9.516e-05,2]
[401281949,1768100506357,-500.0,9.516e-05,2]
[401281950,1768100506381,-500.0,9.516e-05,2]
[401281951,1768100506404,-500.0,9.516e-05,2]
[401281952,1768100506429,-500.0,9.516e-05,2]
[401281953,1768100506456,-500.0,9.516e-05,2]
[401281954,1768100506489,-500.0,9.516e-05,2]
[401281955,1768100506518,-500.0,9.516e-05,2]
[401281956,1768100506543,-500.0,9.516e-05,2]
[401281957,1768100506571,-500.0,9.516e-05,2]
[401281958,1768100506594,-500.0,9.516e-05,2]
[401281959,1768100506620,-500.0,9.516e-05,2]
[401281960,1768100506645,-500.0,9.516e-05,2]
[401281961,1768100506669,-500.0,9.516e-05,2]
[401281962,1768100506694,-500.0,9.516e-05,2]
[401281963,1768100506720,-500.0,9.516e-05,2]
[401281964,1768100506744,-500.0,9.516e-05,2]
[401281965,1768100506768,-401.95542773,9.516e-05,2]
[401281966,1768100506793,-500.0,9.516e-05,2]
[401281967,1768100506817,-500.0,9.516e-05,2]
[401281968,1768100506841,-500.0,9.516e-05,2]
[401281969,1768100506866,-500.0,9.516e-05,2]
[401281970,1768100506891,-500.0,9.516e-05,2]
[401281971,1768100506914,-500.0,9.516e-05,2]
[401281972,1768100506938,-302.36187258,9.516e-05,2]
[401281973,1768100506962,-500.0,9.516e-05,2]
[401281974,1768100506988,-500.0,9.516e-05,2]
[401281975,1768100507012,-500.0,9.516e-05,2]
[401281976,1768100507037,-500.0,9.516e-05,2]
[401281977,1768100507061,-500.0,9.516e-05,2]
[401281978,1768100507084,-500.0,9.516e-05,2]
[401281979,1768100507109,-275.68819391,9.516e-05,2]
[401281980,1768100507133,-500.0,9.516e-05,2]
[401281981,1768100507159,-500.0,9.516e-05,2]
[401281982,1768100507183,-500.0,9.516e-05,2]
[401281983,1768100507209,-500.0,9.516e-05,2]
[401281984,1768100507235,-500.0,9.516e-05,2]
[401281985,1768100507261,-500.0,9.516e-05,2]
[401281986,1768100507288,-500.0,9.516e-05,2]
[401281987,1768100507311,-500.0,9.516e-05,2]
[401281988,1768100507347,-500.0,9.516e-05,2]
[401281989,1768100507377,-500.0,9.516e-05,2]
[401281990,1768100507406,-500.0,9.516e-05,2]
[401281991,1768100507432,-500.0,9.516e-05,2]
[401281992,1768100507460,-500.0,9.516e-05,2]
[401281993,1768100507486,-500.0,9.516e-05,2]
[401281994,1768100507512,-500.0,9.516e-05,2]
[401281995,1768100507538,-500.0,9.516e-05,2]
[401281996,1768100507564,-500.0,9.516e-05,2]
[401281997,1768100507588,-500.0,9.516e-05,2]
[401281998,1768100507615,-500.0,9.516e-05,2]
[401281999,1768100507639,-500.0,9.516e-05,2]
[401282000,1768100507665,-500.0,9.516e-05,2]
[401282001,1768100507690,-500.0,9.516e-05,2]
[401282002,1768100507821,-500.0,9.516e-05,2]
[401282003,1768100507850,-500.0,9.516e-05,2]
[401282004,1768100507876,-500.0,9.516e-05,2]
[401282005,1768100507901,-500.0,9.516e-05,2]
[401282006,1768100507927,-500.0,9.516e-05,2]
[401282007,1768100507952,-500.0,9.516e-05,2]
[401282008,1768100507984,-500.0,9.516e-05,2]
[401282009,1768100508010,-500.0,9.516e-05,2]
[401282010,1768100508035,-500.0,9.516e-05,2]
[401282011,1768100508063,-500.0,9.516e-05,2]
[401282012,1768100508089,-500.0,9.516e-05,2]
[401282013,1768100508114,-500.0,9.516e-05,2]
[401282014,1768100508139,-500.0,9.516e-05,2]
[401282015,1768100508163,-500.0,9.516e-05,2]
[401282016,1768100508189,-500.0,9.516e-05,2]
[401282017,1768100508214,-500.0,9.516e-05,2]
[401282018,1768100508239,-500.0,9.516e-05,2]
[401282019,1768100508265,-500.0,9.516e-05,2]
[401282020,1768100508291,-500.0,9.516e-05,2]
[401282021,1768100508315,-500.0,9.516e-05,2]
[401282022,1768100508341,-500.0,9.516e-05,2]
[401282023,1768100508366,-500.0,9.516e-05,2]
[401282024,1768100508391,-500.0,9.516e-05,2]
[401282025,1768100508416,-500.0,9.516e-05,2]
[401282026,1768100508440,-500.0,9.516e-05,2]
[401282027,1768100508470,-500.0,9.516e-05,2]
[401282028,1768100508495,-500.0,9.516e-05,2]
[401282029,1768100508521,-500.0,9.516e-05,2]
[401282030,1768100508550,-500.0,9.516e-05,2]
[401282031,1768100508576,-583.52588887,9.516e-05,2]
[401282032,1768100508603,-500.0,9.516e-05,2]
[401282033,1768100508634,-500.0,9.516e-05,2]
[401282034,1768100508660,-500.0,9.516e-05,2]
[401282035,1768100508686,-500.0,9.516e-05,2]
[401282036,1768100508712,-500.0,9.516e-05,2]
[401282037,1768100508737,-500.0,9.516e-05,2]
[401282038,1768100508763,-500.0,9.516e-05,2]
[401282039,1768100508798,-500.0,9.516e-05,2]
[401282040,1768100508826,-306.1719233,9.516e-05,2]
[401282041,1768100508852,-500.0,9.516e-05,2]
[401282042,1768100508878,-500.0,9.516e-05,2]
[401282043,1768100508903,-500.0,9.516e-05,2]
[401282044,1768100508931,-500.0,9.516e-05,2]
[401282045,1768100508956,-500.0,9.516e-05,2]
[401282046,1768100508982,-500.0,9.516e-05,2]
[401282047,1768100509009,-500.0,9.516e-05,2]
[401282048,1768100509036,-500.0,9.516e-05,2]
[401282049,1768100509064,-500.0,9.516e-05,2]
[401282050,1768100509091,-500.0,9.516e-05,2]
[401282051,1768100509116,-500.0,9.516e-05,2]
[401282052,1768100509141,-500.0,9.516e-05,2]
[401282053,1768100509167,-500.0,9.516e-05,2]
[401282054,1768100509192,-500.0,9.516e-05,2]
[401282055,1768100509218,-500.0,9.516e-05,2]
[401282056,1768100509245,-500.0,9.516e-05,2]
[401282057,1768100509272,-500.0,9.516e-05,2]
[401282058,1768100509298,-500.0,9.516e-05,2]
[401282059,1768100509324,-500.0,9.516e-05,2]
[401282060,1768100509351,-500.0,9.516e-05,2]
[401282061,1768100509378,-500.0,9.516e-05,2]
[401282062,1768100509404,-500.0,9.516e-05,2]
[401282063,1768100509431,-500.0,9.516e-05,2]
[401282064,1768100509458,-500.0,9.516e-05,2]
[401282065,1768100509484,-500.0,9.516e-05,2]
[401282066,1768100509510,-500.0,9.516e-05,2]
[401282067,1768100509537,-500.0,9.516e-05,2]
[401282068,1768100509563,-500.0,9.516e-05,2]
[401282069,1768100509590,-500.0,9.516e-05,2]
[401282070,1768100509616,-500.0,9.516e-05,2]
[401282071,1768100509641,-172.43828833,9.516e-05,2]
[401282072,1768100509666,-500.0,9.516e-05,2]
[401282073,1768100509692,-500.0,9.516e-05,2]
[401282074,1768100509719,-500.0,9.516e-05,2]
[401282075,1768100509750,-500.0,9.516e-05,2]
[401282076,1768100509776,-500.0,9.516e-05,2]
[401282077,1768100509801,-500.0,9.516e-05,2]
[401282078,1768100509826,-500.0,9.516e-05,2]
[401282079,1768100509851,-500.0,9.516e-05,2]
[401282080,1768100509876,-500.0,9.516e-05,2]
[401282081,1768100509902,-500.0,9.516e-05,2]
[401282082,1768100509928,-500.0,9.516e-05,2]
[401282083,1768100509953,-500.0,9.516e-05,2]
[401282084,1768100509978,-500.0,9.516e-05,2]
[401282085,1768100510003,-500.0,9.516e-05,2]
[401282086,1768100510135,-500.0,9.516e-05,2]
[401282087,1768100510162,-500.0,9.516e-05,2]
[401282088,1768100510188,-500.0,9.516e-05,2]
[401282089,1768100510213,-500.0,9.516e-05,2]
[401282090,1768100510238,-500.0,9.516e-05,2]
[401282091,1768100510263,-500.0,9.516e-05,2]
[401282092,1768100510287,-500.0,9.516e-05,2]
[401282093,1768100510311,-500.0,9.516e-05,2]
[401282094,1768100510337,-500.0,9.516e-05,2]
[401282095,1768100510361,-501.23493955,9.516e-05,2]
[401282096,1768100510386,-758.46038094,9.516e-05,2]
[401282097,1768100510413,-758.46038094,9.516e-05,2]
[401282098,1768100510439,-758.46038094,9.516e-05,2]
[401282099,1768100510468,-758.46038094,9.516e-05,2]
[401282100,1768100510495,-758.46038094,9.516e-05,2]
[401282101,1768100510522,-758.46038094,9.516e-05,2]
[401282102,1768100510546,-758.46038094,9.516e-05,2]
[401282103,1768100510572,-758.46038094,9.516e-05,2]
[401282104,1768100510596,-758.46038094,9.516e-05,2]
[401282105,1768100510620,-758.46038094,9.516e-05,2]
[401282106,1768100510646,-758.46038094,9.516e-05,2]
[401282107,1768100510671,-758.46038094,9.516e-05,2]
[401282108,1768100510696,-758.46038094,9.516e-05,2]
[401282109,1768100510722,-758.46038094,9.516e-05,2]
[401282110,1768100510747,-758.46038094,9.516e-05,2]
[401282111,1768100510772,-758.46038094,9.516e-05,2]
[401282112,1768100510797,-758.46038094,9.516e-05,2]
[401282113,1768100510822,-500.0,9.516e-05,2]
[401282114,1768100510848,-500.0,9.516e-05,2]
[401282115,1768100510880,-563.67619751,9.516e-05,2]
[401282116,1768100510904,-758.46038094,9.516e-05,2]